[Event "Live Chess"]
[Site "Chess.com"]
[Date "2024.06.01"]
[Round "-"]
[White "TedUdale"]
[Black "agamilewska"]
[Result "1/2-1/2"]
[WhiteElo "2118"]
[BlackElo "1780"]
[TimeControl "300"]
[EndTime "15:22:47 PDT"]
[Termination "Game drawn - insufficient material"]

1. e4 {[%clk 0:04:57.3]} 1... e5 {[%clk 0:04:59]} 2. Nc3 {[%clk 0:04:56.2]} 2...
Nc6 {[%clk 0:04:57.9]} 3. Nf3 {[%clk 0:04:55.3]} 3... Bb4 {[%clk 0:04:53.9]} 4.
a3 {[%clk 0:04:54.4]} 4... Bxc3 {[%clk 0:04:53.2]} 5. bxc3 {[%clk 0:04:53.3]}
5... Nf6 {[%clk 0:04:50.6]} 6. Bd3 {[%clk 0:04:50.4]} 6... d6 {[%clk 0:04:49.6]}
7. h3 {[%clk 0:04:49.1]} 7... O-O {[%clk 0:04:48.4]} 8. c4 {[%clk 0:04:47.5]}
8... Nd4 {[%clk 0:04:46.7]} 9. Bb2 {[%clk 0:04:45.5]} 9... c5 {[%clk 0:04:44.2]}
10. Bxd4 {[%clk 0:04:40.1]} 10... cxd4 {[%clk 0:04:42.8]} 11. O-O {[%clk
0:04:37.4]} 11... Be6 {[%clk 0:04:40.8]} 12. c5 {[%clk 0:04:26.8]} 12... Rc8
{[%clk 0:04:18.1]} 13. cxd6 {[%clk 0:04:17.7]} 13... Qxd6 {[%clk 0:04:16.8]} 14.
Rb1 {[%clk 0:04:13.6]} 14... b6 {[%clk 0:04:13.7]} 15. a4 {[%clk 0:04:12.2]}
15... Bc4 {[%clk 0:04:08]} 16. Qe2 {[%clk 0:04:08.8]} 16... Bxd3 {[%clk
0:04:06.2]} 17. Qxd3 {[%clk 0:04:08]} 17... Rc5 {[%clk 0:04:00.2]} 18. Nh4
{[%clk 0:04:06.5]} 18... g6 {[%clk 0:03:57.5]} 19. f3 {[%clk 0:03:57.9]} 19...
Rfc8 {[%clk 0:03:53.9]} 20. Rfc1 {[%clk 0:03:56.2]} 20... Qc6 {[%clk 0:03:50.9]}
21. Rb2 {[%clk 0:03:45.4]} 21... Qxa4 {[%clk 0:03:46.6]} 22. f4 {[%clk
0:03:41.5]} 22... exf4 {[%clk 0:03:35]} 23. Nf3 {[%clk 0:03:40.1]} 23... Qc4
{[%clk 0:03:24.8]} 24. Qxc4 {[%clk 0:03:30.2]} 24... Rxc4 {[%clk 0:03:21.7]} 25.
d3 {[%clk 0:03:29.6]} 25... Ra4 {[%clk 0:03:18.5]} 26. Rb5 {[%clk 0:03:19.6]}
26... Nd7 {[%clk 0:03:06.4]} 27. Rd5 {[%clk 0:03:17.6]} 27... Nc5 {[%clk
0:02:49.9]} 28. Rxd4 {[%clk 0:03:11.4]} 28... Rxd4 {[%clk 0:02:48.3]} 29. Nxd4
{[%clk 0:03:11.3]} 29... Ne6 {[%clk 0:02:29.6]} 30. Nb5 {[%clk 0:03:05.5]} 30...
a6 {[%clk 0:02:26]} 31. Nd6 {[%clk 0:03:04.6]} 31... Rc6 {[%clk 0:02:20.6]} 32.
e5 {[%clk 0:03:03.5]} 32... Nd4 {[%clk 0:02:15.9]} 33. Kf2 {[%clk 0:02:57.9]}
33... Rxc2+ {[%clk 0:02:10.7]} 34. Rxc2 {[%clk 0:02:57.4]} 34... Nxc2 {[%clk
0:02:10.4]} 35. Kf3 {[%clk 0:02:54.9]} 35... Ne1+ {[%clk 0:02:04.1]} 36. Kxf4
{[%clk 0:02:48.6]} 36... Nxd3+ {[%clk 0:02:03.2]} 37. Ke4 {[%clk 0:02:47.9]}
37... Nc5+ {[%clk 0:02:00.7]} 38. Kd5 {[%clk 0:02:47.4]} 38... Nd3 {[%clk
0:01:49]} 39. g3 {[%clk 0:02:32.7]} 39... h5 {[%clk 0:01:45.2]} 40. Ke4 {[%clk
0:02:25.9]} 40... Nf2+ {[%clk 0:01:42]} 41. Kd5 {[%clk 0:02:20.4]} 41... Nxh3
{[%clk 0:01:41]} 42. Kc6 {[%clk 0:02:19.8]} 42... Ng5 {[%clk 0:01:30.2]} 43.
Kxb6 {[%clk 0:02:17.8]} 43... Nf3 {[%clk 0:01:29.1]} 44. Nc4 {[%clk 0:02:15.7]}
44... g5 {[%clk 0:01:25]} 45. Kxa6 {[%clk 0:02:14.2]} 45... h4 {[%clk
0:01:24.2]} 46. gxh4 {[%clk 0:02:12.8]} 46... gxh4 {[%clk 0:01:24]} 47. Ne3
{[%clk 0:02:10.7]} 47... Nxe5 {[%clk 0:01:22.4]} 48. Kb5 {[%clk 0:02:08.9]}
48... h3 {[%clk 0:01:20.9]} 49. Nf1 {[%clk 0:02:06.9]} 49... Nf3 {[%clk
0:01:18.7]} 50. Ng3 {[%clk 0:02:05.5]} 50... Kg7 {[%clk 0:01:13.3]} 51. Kc4
{[%clk 0:02:04.8]} 51... Kg6 {[%clk 0:01:12.4]} 52. Kd3 {[%clk 0:02:04.1]} 52...
Kg5 {[%clk 0:01:11.2]} 53. Ke2 {[%clk 0:02:03.2]} 53... Kg4 {[%clk 0:01:07.4]}
54. Nh1 {[%clk 0:02:02.4]} 54... Nd4+ {[%clk 0:01:05.1]} 55. Kf2 {[%clk
0:02:01.6]} 55... f5 {[%clk 0:01:03.8]} 56. Ng3 {[%clk 0:02:00.6]} 56... f4
{[%clk 0:01:02.5]} 57. Ne4 {[%clk 0:01:59.7]} 57... h2 {[%clk 0:00:45.8]} 58.
Kg2 {[%clk 0:01:58]} 58... Nf3 {[%clk 0:00:44.2]} 59. Nf2+ {[%clk 0:01:56.1]}
59... Kf5 {[%clk 0:00:33.6]} 60. Kxf3 {[%clk 0:01:55.4]} 60... h1=Q+ {[%clk
0:00:32.5]} 61. Nxh1 {[%clk 0:01:54.5]} 61... Ke5 {[%clk 0:00:31.2]} 62. Nf2
{[%clk 0:01:53.4]} 62... Kd6 {[%clk 0:00:28.8]} 63. Nd3 {[%clk 0:01:52.6]} 63...
Kc6 {[%clk 0:00:28]} 64. Nxf4 {[%clk 0:01:51.4]} 1/2-1/2

[Event "Live Chess"]
[Site "Chess.com"]
[Date "2024.06.01"]
[Round "-"]
[White "katoma"]
[Black "LL220284LL"]
[Result "0-1"]
[WhiteElo "2057"]
[BlackElo "2504"]
[TimeControl "300"]
[EndTime "15:22:58 PDT"]
[Termination "LL220284LL won by resignation"]

1. e4 {[%clk 0:04:56.8]} 1... d6 {[%clk 0:04:59.9]} 2. d4 {[%clk 0:04:54.8]}
2... g6 {[%clk 0:04:59.8]} 3. Nc3 {[%clk 0:04:52.9]} 3... Bg7 {[%clk 0:04:59.7]}
4. Bc4 {[%clk 0:04:51.8]} 4... e6 {[%clk 0:04:58.6]} 5. Be3 {[%clk 0:04:47.2]}
5... Ne7 {[%clk 0:04:58.1]} 6. Nge2 {[%clk 0:04:42.3]} 6... Nd7 {[%clk
0:04:57.4]} 7. h4 {[%clk 0:04:35.9]} 7... h5 {[%clk 0:04:54.6]} 8. Qd2 {[%clk
0:04:32.5]} 8... Nb6 {[%clk 0:04:50.6]} 9. Bb3 {[%clk 0:04:27.9]} 9... a5 {[%clk
0:04:49.5]} 10. a4 {[%clk 0:04:25.6]} 10... O-O {[%clk 0:04:45.4]} 11. Bh6
{[%clk 0:04:11.1]} 11... c5 {[%clk 0:04:40.4]} 12. Bxg7 {[%clk 0:04:06]} 12...
Kxg7 {[%clk 0:04:39.3]} 13. O-O-O {[%clk 0:04:04.5]} 13... c4 {[%clk 0:04:35.9]}
14. Ba2 {[%clk 0:04:00.2]} 14... Qe8 {[%clk 0:04:32.2]} 15. d5 {[%clk
0:03:48.4]} 15... Nxa4 {[%clk 0:04:30.2]} 16. Qd4+ {[%clk 0:03:31.6]} 16... e5
{[%clk 0:04:28.4]} 17. Qxc4 {[%clk 0:03:30.1]} 17... Bd7 {[%clk 0:04:24.4]} 18.
Qd3 {[%clk 0:02:46.6]} 18... Rc8 {[%clk 0:04:19.8]} 19. Kb1 {[%clk 0:02:24.4]}
19... Nxc3+ {[%clk 0:04:14.2]} 20. Nxc3 {[%clk 0:02:22.3]} 20... b5 {[%clk
0:04:13.9]} 21. f3 {[%clk 0:02:13.7]} 21... b4 {[%clk 0:04:12.7]} 22. Ne2 {[%clk
0:02:10.9]} 22... Bb5 {[%clk 0:04:08.2]} 23. Qd2 {[%clk 0:02:09.4]} 23... Qd7
{[%clk 0:04:05]} 24. Rdg1 {[%clk 0:02:01.5]} 24... Rc7 {[%clk 0:03:41.4]} 25. g4
{[%clk 0:01:58.9]} 25... Rfc8 {[%clk 0:03:40.5]} 26. c3 {[%clk 0:01:49.4]} 26...
Bxe2 {[%clk 0:03:37.4]} 27. Qxe2 {[%clk 0:01:45.5]} 27... bxc3 {[%clk
0:03:36.7]} 28. gxh5 {[%clk 0:01:41]} 28... c2+ {[%clk 0:03:32.9]} 29. Kc1
{[%clk 0:01:38.6]} 29... Qa4 {[%clk 0:03:32.2]} 30. hxg6 {[%clk 0:01:17.4]}
30... Qxa2 {[%clk 0:03:18.2]} 31. gxf7+ {[%clk 0:01:15.2]} 31... Kxf7 {[%clk
0:03:16.6]} 0-1

[Event "Live Chess"]
[Site "Chess.com"]
[Date "2024.06.01"]
[Round "-"]
[White "defenderalist"]
[Black "degringolade64"]
[Result "0-1"]
[WhiteElo "1547"]
[BlackElo "2115"]
[TimeControl "300"]
[EndTime "15:23:08 PDT"]
[Termination "degringolade64 won by resignation"]

1. e4 {[%clk 0:04:58.2]} 1... e5 {[%clk 0:04:59.1]} 2. f4 {[%clk 0:04:56.5]}
2... exf4 {[%clk 0:04:57.3]} 3. Nf3 {[%clk 0:04:54.8]} 3... d6 {[%clk
0:04:56.6]} 4. d4 {[%clk 0:04:48.7]} 4... g5 {[%clk 0:04:53.4]} 5. Bc4 {[%clk
0:04:42.2]} 5... Bg7 {[%clk 0:04:48.3]} 6. O-O {[%clk 0:04:37.8]} 6... h6 {[%clk
0:04:43.9]} 7. e5 {[%clk 0:04:36.6]} 7... dxe5 {[%clk 0:04:39.3]} 8. Nxe5 {[%clk
0:04:21.8]} 8... Bxe5 {[%clk 0:04:36.7]} 9. Bxf7+ {[%clk 0:04:14.9]} 9... Kxf7
{[%clk 0:04:30.6]} 10. Qh5+ {[%clk 0:04:14.3]} 10... Kg7 {[%clk 0:04:29.5]} 11.
dxe5 {[%clk 0:04:14]} 11... Ne7 {[%clk 0:04:20]} 12. Bxf4 {[%clk 0:04:08.8]}
12... Qd4+ {[%clk 0:04:13.5]} 13. Kh1 {[%clk 0:04:02.7]} 13... gxf4 {[%clk
0:04:08.3]} 14. Nc3 {[%clk 0:03:56.3]} 14... Nbc6 {[%clk 0:03:55.4]} 15. Rad1
{[%clk 0:03:53.3]} 15... Qxe5 {[%clk 0:03:52.3]} 16. Qf3 {[%clk 0:03:40.3]}
16... Bf5 {[%clk 0:03:43.4]} 17. Rde1 {[%clk 0:03:32.7]} 17... Qf6 {[%clk
0:03:39.2]} 18. Qxf4 {[%clk 0:03:30.7]} 18... Rhf8 {[%clk 0:03:33.3]} 19. h3
{[%clk 0:03:11.1]} 19... Bg6 {[%clk 0:03:20.1]} 20. Qc1 {[%clk 0:02:50.8]} 20...
Nf5 {[%clk 0:03:17.3]} 21. Ne4 {[%clk 0:02:46.8]} 21... Qe5 {[%clk 0:02:51.1]}
22. Ng5 {[%clk 0:02:34.2]} 22... Ng3+ {[%clk 0:02:49.4]} 23. Kg1 {[%clk
0:02:26.6]} 23... Rxf1+ {[%clk 0:02:47]} 24. Rxf1 {[%clk 0:02:14.7]} 24... Ne2+
{[%clk 0:02:45.3]} 0-1

[Event "Live Chess"]
[Site "Chess.com"]
[Date "2024.06.01"]
[Round "-"]
[White "Zhevzh1k7"]
[Black "booktrunk"]
[Result "0-1"]
[WhiteElo "1107"]
[BlackElo "1452"]
[TimeControl "300"]
[EndTime "15:23:12 PDT"]
[Termination "booktrunk won by checkmate"]

1. e4 {[%clk 0:04:56.6]} 1... b6 {[%clk 0:04:57.3]} 2. d4 {[%clk 0:04:54.6]}
2... Bb7 {[%clk 0:04:54.3]} 3. Nc3 {[%clk 0:04:51.9]} 3... e6 {[%clk 0:04:52.5]}
4. Nf3 {[%clk 0:04:49.8]} 4... h6 {[%clk 0:04:51.5]} 5. Bc4 {[%clk 0:04:47.5]}
5... Nf6 {[%clk 0:04:48.1]} 6. e5 {[%clk 0:04:43.3]} 6... Nd5 {[%clk 0:04:42.6]}
7. Nxd5 {[%clk 0:04:41.4]} 7... exd5 {[%clk 0:04:40.8]} 8. Bb3 {[%clk
0:04:39.7]} 8... a5 {[%clk 0:04:38.2]} 9. a3 {[%clk 0:04:34]} 9... Be7 {[%clk
0:04:23.2]} 10. O-O {[%clk 0:04:31.9]} 10... O-O {[%clk 0:04:21.3]} 11. Bf4
{[%clk 0:04:27.5]} 11... d6 {[%clk 0:04:15.7]} 12. exd6 {[%clk 0:04:25.4]} 12...
Bxd6 {[%clk 0:04:14.4]} 13. Bxd6 {[%clk 0:04:23.7]} 13... Qxd6 {[%clk 0:04:13]}
14. Re1 {[%clk 0:04:18.8]} 14... Nd7 {[%clk 0:04:11.7]} 15. Qd3 {[%clk
0:04:14.5]} 15... Rae8 {[%clk 0:04:07.8]} 16. Rxe8 {[%clk 0:04:11.4]} 16... Rxe8
{[%clk 0:04:06.6]} 17. Re1 {[%clk 0:04:09.1]} 17... Rxe1+ {[%clk 0:04:04.4]} 18.
Nxe1 {[%clk 0:04:06]} 18... c5 {[%clk 0:04:02]} 19. dxc5 {[%clk 0:04:04.1]}
19... Nxc5 {[%clk 0:03:58.3]} 20. Qb5 {[%clk 0:03:53.5]} 20... Nxb3 {[%clk
0:03:54.2]} 21. Qe8+ {[%clk 0:03:49.3]} 21... Kh7 {[%clk 0:03:50.9]} 22. cxb3
{[%clk 0:03:46]} 22... Qe6 {[%clk 0:03:44.2]} 23. Qxe6 {[%clk 0:03:41.9]} 23...
fxe6 {[%clk 0:03:42.6]} 24. Nd3 {[%clk 0:03:40.6]} 24... Bc6 {[%clk 0:03:40.3]}
25. b4 {[%clk 0:03:31.6]} 25... axb4 {[%clk 0:03:35.8]} 26. axb4 {[%clk
0:03:29.4]} 26... Kg6 {[%clk 0:03:32]} 27. Ne5+ {[%clk 0:03:27.9]} 27... Kf6
{[%clk 0:03:28.8]} 28. Nxc6 {[%clk 0:03:27.2]} 28... Kf5 {[%clk 0:03:28.1]} 29.
f3 {[%clk 0:03:22.6]} 29... g5 {[%clk 0:03:28]} 30. g4+ {[%clk 0:03:20]} 30...
Kf6 {[%clk 0:03:26.5]} 31. Kf2 {[%clk 0:03:12.8]} 31... e5 {[%clk 0:03:25.9]}
32. Ke3 {[%clk 0:03:10.9]} 32... Ke6 {[%clk 0:03:25.4]} 33. Na5 {[%clk 0:03:08]}
33... Kd6 {[%clk 0:03:23.7]} 34. h3 {[%clk 0:02:59.2]} 34... Ke6 {[%clk
0:03:17.5]} 35. Nb3 {[%clk 0:02:54.1]} 35... Kd6 {[%clk 0:03:15.6]} 36. Nd2
{[%clk 0:02:50.5]} 36... Kc6 {[%clk 0:03:13.8]} 37. Nf1 {[%clk 0:02:39.2]} 37...
Kb5 {[%clk 0:03:12.3]} 38. Ng3 {[%clk 0:02:38.5]} 38... Kxb4 {[%clk 0:03:11]}
39. Nf5 {[%clk 0:02:38.1]} 39... Kb3 {[%clk 0:03:09.3]} 40. Nxh6 {[%clk
0:02:33.9]} 40... Kxb2 {[%clk 0:03:09.2]} 41. Nf7 {[%clk 0:02:31.4]} 41... Kc3
{[%clk 0:03:09.1]} 42. Nxe5 {[%clk 0:02:30.1]} 42... b5 {[%clk 0:03:09]} 43. Nc6
{[%clk 0:02:28]} 43... b4 {[%clk 0:03:08.9]} 44. f4 {[%clk 0:02:20.2]} 44... b3
{[%clk 0:03:08.8]} 45. Nd4 {[%clk 0:02:17.7]} 45... gxf4+ {[%clk 0:03:08.7]} 46.
Kxf4 {[%clk 0:02:15.6]} 46... b2 {[%clk 0:03:08.6]} 47. g5 {[%clk 0:02:15.4]}
47... b1=Q {[%clk 0:03:06.7]} 48. Ne2+ {[%clk 0:02:14.5]} 48... Kd2 {[%clk
0:03:03.2]} 49. Kf3 {[%clk 0:02:11.3]} 49... Qf5+ {[%clk 0:03:00]} 50. Nf4
{[%clk 0:02:09.6]} 50... Qxg5 {[%clk 0:02:56.7]} 51. Ne6 {[%clk 0:01:55]} 51...
Qf5+ {[%clk 0:02:50.9]} 52. Nf4 {[%clk 0:01:53.7]} 52... Qe4+ {[%clk 0:02:47.1]}
53. Kg4 {[%clk 0:01:51.7]} 53... d4 {[%clk 0:02:45.8]} 54. Kg3 {[%clk
0:01:48.9]} 54... Kc2 {[%clk 0:02:40.8]} 55. h4 {[%clk 0:01:35.8]} 55... d3
{[%clk 0:02:39.1]} 56. Nxd3 {[%clk 0:01:32]} 56... Kxd3 {[%clk 0:02:36.8]} 57.
h5 {[%clk 0:01:30.6]} 57... Qh7 {[%clk 0:02:35.5]} 58. Kg4 {[%clk 0:01:29.6]}
58... Ke4 {[%clk 0:02:33.6]} 59. Kg5 {[%clk 0:01:28.7]} 59... Ke5 {[%clk
0:02:32.1]} 60. h6 {[%clk 0:01:27.1]} 60... Ke6 {[%clk 0:02:29.9]} 61. Kh5
{[%clk 0:01:25.6]} 61... Kf6 {[%clk 0:02:27.5]} 62. Kg4 {[%clk 0:01:23.8]} 62...
Qxh6 {[%clk 0:02:26]} 63. Kf3 {[%clk 0:01:22.5]} 63... Kf5 {[%clk 0:02:23.2]}
64. Ke2 {[%clk 0:01:21.2]} 64... Qh3 {[%clk 0:02:21.3]} 65. Kd2 {[%clk
0:01:20.3]} 65... Ke4 {[%clk 0:02:19.5]} 66. Ke2 {[%clk 0:01:19.5]} 66... Qg2+
{[%clk 0:02:16.3]} 67. Kd1 {[%clk 0:01:18]} 67... Kd3 {[%clk 0:02:14.7]} 68. Ke1
{[%clk 0:01:16.7]} 68... Qe2# {[%clk 0:02:12.6]} 0-1

[Event "Live Chess"]
[Site "Chess.com"]
[Date "2024.06.01"]
[Round "-"]
[White "McFim"]
[Black "jk0110"]
[Result "1-0"]
[WhiteElo "1626"]
[BlackElo "1236"]
[TimeControl "300"]
[EndTime "15:23:16 PDT"]
[Termination "McFim won by resignation"]

1. e4 {[%clk 0:04:57.3]} 1... e5 {[%clk 0:04:58.6]} 2. Nf3 {[%clk 0:04:56]} 2...
Nc6 {[%clk 0:04:57.5]} 3. Bb5 {[%clk 0:04:54.6]} 3... f5 {[%clk 0:04:55.9]} 4.
Nc3 {[%clk 0:04:51.9]} 4... a6 {[%clk 0:04:47.5]} 5. Bxc6 {[%clk 0:04:42.6]}
5... dxc6 {[%clk 0:04:42.9]} 6. Nxe5 {[%clk 0:04:41.5]} 6... Qd4 {[%clk
0:04:28.6]} 7. Nf3 {[%clk 0:04:39.3]} 7... Qf6 {[%clk 0:04:18.7]} 8. e5 {[%clk
0:04:37.4]} 8... Qe6 {[%clk 0:04:05.7]} 9. d4 {[%clk 0:04:35.6]} 9... Nf6 {[%clk
0:03:52.9]} 10. O-O {[%clk 0:04:30.1]} 10... Nd5 {[%clk 0:03:49.3]} 11. Ng5
{[%clk 0:04:10.9]} 11... Qd7 {[%clk 0:03:37.9]} 12. e6 {[%clk 0:04:08.9]} 12...
Qe7 {[%clk 0:03:27.4]} 13. Re1 {[%clk 0:04:02.6]} 13... h6 {[%clk 0:03:21.3]}
14. Qh5+ {[%clk 0:03:58.3]} 14... Kd8 {[%clk 0:03:08]} 15. Nf7+ {[%clk
0:03:56.4]} 15... Ke8 {[%clk 0:02:53.5]} 16. Nxh8+ {[%clk 0:03:54.3]} 16... Kd8
{[%clk 0:02:47.1]} 17. Nf7+ {[%clk 0:03:52.4]} 17... Ke8 {[%clk 0:02:46.2]} 18.
Nd6+ {[%clk 0:03:45.1]} 18... Kd8 {[%clk 0:02:39.4]} 19. Nf7+ {[%clk 0:03:36.4]}
19... Ke8 {[%clk 0:02:37.6]} 20. Nxh6+ {[%clk 0:03:35.8]} 20... g6 {[%clk
0:02:22.6]} 21. Qxg6+ {[%clk 0:03:32.7]} 21... Kd8 {[%clk 0:02:01.8]} 22. Nf7+
{[%clk 0:03:30.7]} 22... Ke8 {[%clk 0:01:56]} 23. Nxd5 {[%clk 0:03:28.1]} 23...
cxd5 {[%clk 0:01:46.6]} 24. Ne5+ {[%clk 0:03:15.3]} 24... Kd8 {[%clk 0:01:42.1]}
25. Bg5 {[%clk 0:03:14.7]} 25... Qxg5 {[%clk 0:01:30.6]} 26. Qxg5+ {[%clk
0:03:12.7]} 26... Ke8 {[%clk 0:01:29.4]} 27. Qg6+ {[%clk 0:03:08.8]} 27... Ke7
{[%clk 0:01:24.8]} 28. Qf7+ {[%clk 0:03:02.2]} 28... Kd6 {[%clk 0:01:16.5]} 29.
Qxf8+ {[%clk 0:03:01]} 29... Kxe6 {[%clk 0:01:06.1]} 1-0

[Event "Live Chess"]
[Site "Chess.com"]
[Date "2024.06.01"]
[Round "-"]
[White "koekoekoe"]
[Black "updatedopenings2024"]
[Result "1/2-1/2"]
[WhiteElo "1989"]
[BlackElo "1959"]
[TimeControl "300"]
[EndTime "15:23:23 PDT"]
[Termination "Game drawn by agreement"]

1. d4 {[%clk 0:04:59]} 1... c6 {[%clk 0:04:59.4]} 2. Bf4 {[%clk 0:04:58.4]} 2...
d6 {[%clk 0:04:59.3]} 3. e3 {[%clk 0:04:58]} 3... g6 {[%clk 0:04:58.8]} 4. c4
{[%clk 0:04:57.6]} 4... Bg7 {[%clk 0:04:58.7]} 5. Nc3 {[%clk 0:04:57]} 5... Nf6
{[%clk 0:04:58.6]} 6. Nf3 {[%clk 0:04:56.3]} 6... O-O {[%clk 0:04:58.5]} 7. h3
{[%clk 0:04:56]} 7... Re8 {[%clk 0:04:58.4]} 8. Be2 {[%clk 0:04:55.6]} 8... Nbd7
{[%clk 0:04:58.3]} 9. O-O {[%clk 0:04:54.7]} 9... e5 {[%clk 0:04:58.2]} 10. dxe5
{[%clk 0:04:53.8]} 10... dxe5 {[%clk 0:04:58.1]} 11. Nxe5 {[%clk 0:04:52]} 11...
Nxe5 {[%clk 0:04:56.7]} 12. Qxd8 {[%clk 0:04:49.7]} 12... Rxd8 {[%clk
0:04:56.6]} 13. Bxe5 {[%clk 0:04:49.3]} 13... Be6 {[%clk 0:04:56.4]} 14. Rfd1
{[%clk 0:04:46.6]} 14... Rac8 {[%clk 0:04:55.5]} 15. b3 {[%clk 0:04:40.6]} 15...
a6 {[%clk 0:04:49.6]} 16. Rac1 {[%clk 0:04:40.1]} 16... b5 {[%clk 0:04:48.5]}
17. c5 {[%clk 0:04:20]} 17... Nd7 {[%clk 0:04:37.2]} 18. Bxg7 {[%clk 0:04:19.9]}
18... Kxg7 {[%clk 0:04:37.1]} 19. b4 {[%clk 0:04:15.8]} 19... a5 {[%clk
0:04:36.5]} 20. a3 {[%clk 0:04:14.4]} 20... axb4 {[%clk 0:04:36.4]} 21. axb4
{[%clk 0:04:14.3]} 21... Ne5 {[%clk 0:04:36]} 22. Ne4 {[%clk 0:04:09.3]} 22...
Bd5 {[%clk 0:04:29.9]} 23. Nd6 {[%clk 0:04:04.7]} 23... Ra8 {[%clk 0:04:29.3]}
24. e4 {[%clk 0:03:56.1]} 24... Be6 {[%clk 0:04:28.5]} 25. Ra1 {[%clk
0:03:47.7]} 25... Ra4 {[%clk 0:04:24.2]} 26. f4 {[%clk 0:03:31.8]} 26... Nc4
{[%clk 0:04:17.7]} 27. Nxc4 {[%clk 0:03:09.7]} 27... Rxd1+ {[%clk 0:04:17.6]}
28. Rxd1 {[%clk 0:03:05.9]} 28... bxc4 {[%clk 0:04:14.4]} 29. Rb1 {[%clk
0:03:00.4]} 29... f5 {[%clk 0:04:12.6]} 30. e5 {[%clk 0:02:56.2]} 30... c3
{[%clk 0:04:10.1]} 31. Rc1 {[%clk 0:02:51.7]} 31... Rxb4 {[%clk 0:04:09]} 32.
Rxc3 {[%clk 0:02:51.1]} 32... Rxf4 {[%clk 0:04:08.1]} 33. Bf3 {[%clk 0:02:47.4]}
33... Bd7 {[%clk 0:04:06.9]} 34. Ra3 {[%clk 0:02:30.1]} 34... Kf7 {[%clk
0:04:02.7]} 35. Ra7 {[%clk 0:02:27.2]} 35... Ke6 {[%clk 0:04:02]} 36. Rc7 {[%clk
0:02:20.1]} 36... Rc4 {[%clk 0:03:59.8]} 37. Bxc6 {[%clk 0:02:16.4]} 37... Bxc6
{[%clk 0:03:59]} 38. Rxc6+ {[%clk 0:02:15.6]} 38... Kxe5 {[%clk 0:03:58.3]} 39.
Rc8 {[%clk 0:02:11.6]} 39... Kd5 {[%clk 0:03:54.1]} 40. Rc7 {[%clk 0:02:04.3]}
40... Rxc5 {[%clk 0:03:51.5]} 41. Rxh7 {[%clk 0:02:03.9]} 41... Ke5 {[%clk
0:03:50.6]} 42. Rg7 {[%clk 0:02:03]} 42... Kf6 {[%clk 0:03:50]} 43. Rg8 {[%clk
0:02:02.4]} 43... Rc2 {[%clk 0:03:49.4]} 44. Kh2 {[%clk 0:02:00.1]} 44... Ra2
{[%clk 0:03:48.6]} 45. Kg3 {[%clk 0:01:58.9]} 45... Ra3+ {[%clk 0:03:47.1]} 46.
Kh2 {[%clk 0:01:58.1]} 46... Kg5 {[%clk 0:03:42.7]} 47. Rb8 {[%clk 0:01:55.9]}
47... Ra2 {[%clk 0:03:40.9]} 48. Rb4 {[%clk 0:01:54.8]} 48... Ra3 {[%clk
0:03:39.8]} 49. Rc4 {[%clk 0:01:53.9]} 1/2-1/2

[Event "Live Chess"]
[Site "Chess.com"]
[Date "2024.06.01"]
[Round "-"]
[White "WelshTiger"]
[Black "KeithArkell"]
[Result "0-1"]
[WhiteElo "2497"]
[BlackElo "2412"]
[TimeControl "300"]
[EndTime "15:23:29 PDT"]
[Termination "KeithArkell won on time"]

1. e4 {[%clk 0:04:57.4]} 1... c6 {[%clk 0:04:59.2]} 2. d4 {[%clk 0:04:56.2]}
2... d5 {[%clk 0:04:58.2]} 3. e5 {[%clk 0:04:55.8]} 3... c5 {[%clk 0:04:57.7]}
4. dxc5 {[%clk 0:04:53.8]} 4... Nc6 {[%clk 0:04:57.1]} 5. f4 {[%clk 0:04:53]}
5... e6 {[%clk 0:04:55.7]} 6. Be3 {[%clk 0:04:49.9]} 6... d4 {[%clk 0:04:54.9]}
7. Bf2 {[%clk 0:04:49.2]} 7... Bxc5 {[%clk 0:04:54.6]} 8. Nf3 {[%clk 0:04:46.9]}
8... Nge7 {[%clk 0:04:54.1]} 9. Bd3 {[%clk 0:04:41.4]} 9... Nd5 {[%clk
0:04:52.8]} 10. g3 {[%clk 0:04:39.6]} 10... Ne3 {[%clk 0:04:51.2]} 11. Qe2
{[%clk 0:04:30.9]} 11... b6 {[%clk 0:04:46.6]} 12. Nbd2 {[%clk 0:04:26.1]} 12...
Bb7 {[%clk 0:04:45.4]} 13. Ne4 {[%clk 0:04:24.3]} 13... Ng4 {[%clk 0:04:39.2]}
14. Bg1 {[%clk 0:04:18.2]} 14... Bb4+ {[%clk 0:04:35.5]} 15. Kf1 {[%clk
0:04:13.7]} 15... h5 {[%clk 0:04:30.7]} 16. a3 {[%clk 0:04:11.5]} 16... Be7
{[%clk 0:04:29.3]} 17. h3 {[%clk 0:03:39.7]} 17... Nh6 {[%clk 0:04:27.9]} 18. g4
{[%clk 0:03:36.5]} 18... Qd5 {[%clk 0:04:22.8]} 19. Bc4 {[%clk 0:02:58.6]} 19...
Qd7 {[%clk 0:04:21.1]} 20. Rd1 {[%clk 0:02:52.1]} 20... O-O-O {[%clk 0:04:16]}
21. Nfg5 {[%clk 0:02:32.2]} 21... hxg4 {[%clk 0:04:12.2]} 22. hxg4 {[%clk
0:02:30.4]} 22... Kb8 {[%clk 0:04:06.7]} 23. Rxh6 {[%clk 0:02:24.9]} 23... Rxh6
{[%clk 0:04:02.5]} 24. Nxf7 {[%clk 0:02:24.2]} 24... Rdh8 {[%clk 0:03:18.2]} 25.
Nxh8 {[%clk 0:02:17.8]} 25... Rxh8 {[%clk 0:03:17]} 26. c3 {[%clk 0:02:11.6]}
26... g5 {[%clk 0:03:04.1]} 27. cxd4 {[%clk 0:02:02.9]} 27... gxf4 {[%clk
0:03:03.4]} 28. d5 {[%clk 0:02:02]} 28... exd5 {[%clk 0:03:02.3]} 29. Bxd5
{[%clk 0:01:59.6]} 29... Nxe5 {[%clk 0:02:51.9]} 30. Bxb7 {[%clk 0:01:44]} 30...
Qxb7 {[%clk 0:02:51.8]} 31. Nc5 {[%clk 0:01:32.5]} 31... Qf3+ {[%clk 0:02:47.5]}
32. Qxf3 {[%clk 0:01:31.2]} 32... Nxf3 {[%clk 0:02:46.9]} 33. Nd3 {[%clk
0:01:26.4]} 33... Nxg1 {[%clk 0:02:37]} 34. Kxg1 {[%clk 0:01:23.5]} 34... Rg8
{[%clk 0:02:35.8]} 35. Nxf4 {[%clk 0:01:17]} 35... Rxg4+ {[%clk 0:02:34.6]} 36.
Ng2 {[%clk 0:01:16.2]} 36... Bf6 {[%clk 0:02:33.6]} 37. Rd2 {[%clk 0:01:13.1]}
37... Rg3 {[%clk 0:02:29.4]} 38. Kf1 {[%clk 0:01:11.6]} 38... Rb3 {[%clk
0:02:28.1]} 39. a4 {[%clk 0:00:38.1]} 39... Bxb2 {[%clk 0:02:26.3]} 40. Ke2
{[%clk 0:00:34.2]} 40... Bc3 {[%clk 0:02:18.3]} 41. Ra2 {[%clk 0:00:33]} 41...
Ba5 {[%clk 0:02:16.6]} 42. Ne3 {[%clk 0:00:31.2]} 42... Kb7 {[%clk 0:02:14.2]}
43. Nc4 {[%clk 0:00:30.3]} 43... Ka6 {[%clk 0:02:12.2]} 44. Nb2 {[%clk
0:00:14.2]} 44... Rh3 {[%clk 0:02:10.1]} 45. Kd1 {[%clk 0:00:09.8]} 45... Bc3
{[%clk 0:02:06.8]} 46. Kc2 {[%clk 0:00:08.5]} 46... Bxb2 {[%clk 0:02:04.7]} 47.
Rxb2 {[%clk 0:00:06.9]} 47... Ra3 {[%clk 0:02:00.4]} 48. Rb4 {[%clk 0:00:05.4]}
48... Ka5 {[%clk 0:01:59.6]} 49. Rh4 {[%clk 0:00:04.4]} 49... Rxa4 {[%clk
0:01:58.5]} 50. Rh7 {[%clk 0:00:03.8]} 50... a6 {[%clk 0:01:57.3]} 51. Kb3
{[%clk 0:00:03.4]} 51... Rb4+ {[%clk 0:01:56.2]} 52. Ka3 {[%clk 0:00:02.2]}
52... Rf4 {[%clk 0:01:55.4]} 53. Rh3 {[%clk 0:00:01.1]} 53... b5 {[%clk
0:01:54.6]} 0-1